[Event "Late-Titled-Tuesday-Blitz-October-10-2023"]
[Site "Chess.com"]
[Date "2023.10.10"]
[Round "2"]
[White "Russian_berezka"]
[Black "DanielNaroditsky"]
[Result "0-1"]
[WhiteElo "2662"]
[BlackElo "3180"]
[TimeControl "180+1"]
[EndTime "14:15:24 PDT"]
[Termination "DanielNaroditsky won by resignation"]

1. d4 {[%clk 0:03:00.9]} 1... Nf6 {[%clk 0:02:58.8]} 2. Bf4 {[%clk 0:03:01]}
2... c5 {[%clk 0:02:58.6]} 3. e3 {[%clk 0:03:01.2]} 3... cxd4 {[%clk 0:02:59.2]}
4. exd4 {[%clk 0:03:02.1]} 4... Qb6 {[%clk 0:02:59.7]} 5. Nc3 {[%clk 0:03:02.2]}
5... a6 {[%clk 0:02:57.2]} 6. Rb1 {[%clk 0:03:02.3]} 6... d5 {[%clk 0:02:55.6]}
7. Nf3 {[%clk 0:02:59.2]} 7... Bg4 {[%clk 0:02:55.7]} 8. Be2 {[%clk 0:02:55.4]}
8... Nc6 {[%clk 0:02:54.3]} 9. Ne5 {[%clk 0:02:46.4]} 9... Bxe2 {[%clk
0:02:43.8]} 10. Nxe2 {[%clk 0:02:45]} 10... e6 {[%clk 0:02:43.3]} 11. O-O {[%clk
0:02:40.3]} 11... Be7 {[%clk 0:02:43]} 12. c3 {[%clk 0:02:36.6]} 12... O-O
{[%clk 0:02:41.2]} 13. Bg5 {[%clk 0:02:33.1]} 13... Qc7 {[%clk 0:02:37.2]} 14.
Bxf6 {[%clk 0:02:16.7]} 14... Bxf6 {[%clk 0:02:37.1]} 15. f4 {[%clk 0:02:17.3]}
15... Ne7 {[%clk 0:02:31.6]} 16. Ng3 {[%clk 0:02:14.8]} 16... g6 {[%clk
0:02:31.6]} 17. Qd3 {[%clk 0:02:10.9]} 17... Bg7 {[%clk 0:02:30.7]} 18. h3
{[%clk 0:02:02.2]} 18... b5 {[%clk 0:02:30.1]} 19. Ne2 {[%clk 0:01:47.8]} 19...
Nc8 {[%clk 0:02:30.2]} 20. g4 {[%clk 0:01:45.8]} 20... Nd6 {[%clk 0:02:30.2]}
21. Ng3 {[%clk 0:01:46]} 21... f6 {[%clk 0:02:21.8]} 22. Nf3 {[%clk 0:01:45.8]}
22... Rae8 {[%clk 0:02:22.6]} 23. Rbe1 {[%clk 0:01:44.7]} 23... Nc4 {[%clk
0:02:19.5]} 24. b3 {[%clk 0:01:33.7]} 24... Nd6 {[%clk 0:02:15.4]} 25. f5 {[%clk
0:01:24.1]} 25... Nxf5 {[%clk 0:02:08.5]} 26. Nxf5 {[%clk 0:01:24.4]} 26... exf5
{[%clk 0:02:02.7]} 27. gxf5 {[%clk 0:01:20.8]} 27... Qg3+ {[%clk 0:02:02.7]} 28.
Kh1 {[%clk 0:01:21.3]} 28... Qxh3+ {[%clk 0:02:03.4]} 29. Kg1 {[%clk 0:01:21.8]}
29... gxf5 {[%clk 0:01:51.5]} 30. Ne5 {[%clk 0:01:10.3]} 30... Qh4 {[%clk
0:01:46]} 31. Nf3 {[%clk 0:01:00.2]} 31... Qg3+ {[%clk 0:01:46.3]} 32. Kh1
{[%clk 0:01:00.3]} 32... Re4 {[%clk 0:01:47.2]} 33. Re3 {[%clk 0:00:44.8]} 33...
Rfe8 {[%clk 0:01:37.5]} 34. Rfe1 {[%clk 0:00:43.6]} 34... Qh3+ {[%clk
0:01:35.2]} 35. Kg1 {[%clk 0:00:39.2]} 35... Rg4+ {[%clk 0:01:35.5]} 0-1

[Event "Late-Titled-Tuesday-Blitz-October-10-2023"]
[Site "Chess.com"]
[Date "2023.10.10"]
[Round "2"]
[White "rezamahdavi2008"]
[Black "dcremisi"]
[Result "1-0"]
[WhiteElo "2870"]
[BlackElo "2556"]
[TimeControl "180+1"]
[EndTime "14:15:30 PDT"]
[Termination "rezamahdavi2008 won by resignation"]

1. e4 {[%clk 0:03:00.9]} 1... e6 {[%clk 0:02:59.4]} 2. d4 {[%clk 0:02:48.2]}
2... d5 {[%clk 0:02:59.4]} 3. e5 {[%clk 0:02:48.8]} 3... c5 {[%clk 0:02:59.1]}
4. c3 {[%clk 0:02:46.2]} 4... Nc6 {[%clk 0:02:59.3]} 5. Nf3 {[%clk 0:02:44.6]}
5... Qb6 {[%clk 0:02:58.8]} 6. a3 {[%clk 0:02:45]} 6... Nh6 {[%clk 0:02:57.5]}
7. b4 {[%clk 0:02:42.9]} 7... cxd4 {[%clk 0:02:57.5]} 8. cxd4 {[%clk 0:02:43.8]}
8... Nf5 {[%clk 0:02:57.5]} 9. Be3 {[%clk 0:02:42.8]} 9... f6 {[%clk 0:02:55.6]}
10. exf6 {[%clk 0:02:39.6]} 10... gxf6 {[%clk 0:02:55.8]} 11. Bd3 {[%clk
0:02:40.3]} 11... Nxe3 {[%clk 0:02:55.8]} 12. fxe3 {[%clk 0:02:34.2]} 12... Bd7
{[%clk 0:02:56]} 13. O-O {[%clk 0:02:33]} 13... Be7 {[%clk 0:02:56.1]} 14. Nc3
{[%clk 0:02:31.1]} 14... O-O {[%clk 0:02:54.9]} 15. Nh4 {[%clk 0:02:30.7]} 15...
f5 {[%clk 0:02:51.5]} 16. Qh5 {[%clk 0:02:31.3]} 16... Nxd4 {[%clk 0:02:45.1]}
17. Ng6 {[%clk 0:02:19.2]} 17... hxg6 {[%clk 0:01:28.2]} 18. Qxg6+ {[%clk
0:02:20.1]} 18... Kh8 {[%clk 0:01:28.4]} 19. Kh1 {[%clk 0:02:20]} 19... e5
{[%clk 0:00:58.8]} 20. Qh5+ {[%clk 0:02:18.8]} 20... Kg7 {[%clk 0:00:56]} 21.
Nxd5 {[%clk 0:02:19.1]} 21... Rh8 {[%clk 0:00:22.5]} 22. Qxh8+ {[%clk
0:02:15.4]} 22... Rxh8 {[%clk 0:00:22.1]} 23. Nxb6 {[%clk 0:02:16.3]} 23... axb6
{[%clk 0:00:20.4]} 24. exd4 {[%clk 0:02:16.9]} 24... e4 {[%clk 0:00:20.9]} 25.
Bc4 {[%clk 0:02:17.4]} 25... Bd6 {[%clk 0:00:20.8]} 26. h3 {[%clk 0:02:18.1]}
26... f4 {[%clk 0:00:20.5]} 27. Bd5 {[%clk 0:02:18.1]} 27... e3 {[%clk
0:00:19.1]} 28. Rac1 {[%clk 0:02:18.2]} 28... Ra8 {[%clk 0:00:16.1]} 29. Rc3
{[%clk 0:02:18]} 29... Re8 {[%clk 0:00:15.5]} 30. Bf3 {[%clk 0:02:18.1]} 30...
Bb5 {[%clk 0:00:13.9]} 31. Rfc1 {[%clk 0:02:17.6]} 31... Be7 {[%clk 0:00:12.7]}
32. Rc7 {[%clk 0:02:16.8]} 32... Kf8 {[%clk 0:00:12.3]} 33. Rxb7 {[%clk
0:02:15.1]} 33... Bh4 {[%clk 0:00:08.4]} 34. Rcc7 {[%clk 0:02:12.1]} 34... e2
{[%clk 0:00:07.9]} 35. Rf7+ {[%clk 0:02:12.5]} 35... Kg8 {[%clk 0:00:08.2]} 36.
Rg7+ {[%clk 0:02:13.4]} 36... Kh8 {[%clk 0:00:07]} 37. Rh7+ {[%clk 0:02:14.1]}
37... Kg8 {[%clk 0:00:07.2]} 38. Bd5+ {[%clk 0:02:15]} 1-0

[Event "Late-Titled-Tuesday-Blitz-October-10-2023"]
[Site "Chess.com"]
[Date "2023.10.10"]
[Round "2"]
[White "jcibarra"]
[Black "ValeriyGrinev"]
[Result "1-0"]
[WhiteElo "2908"]
[BlackElo "2584"]
[TimeControl "180+1"]
[EndTime "14:15:40 PDT"]
[Termination "jcibarra won by resignation"]

1. e4 {[%clk 0:03:00.9]} 1... c5 {[%clk 0:03:00.2]} 2. Nf3 {[%clk 0:03:01.2]}
2... e6 {[%clk 0:03:00.8]} 3. d4 {[%clk 0:03:00.6]} 3... cxd4 {[%clk 0:03:01.7]}
4. Nxd4 {[%clk 0:03:01.3]} 4... a6 {[%clk 0:03:02.4]} 5. c4 {[%clk 0:03:01.3]}
5... Nf6 {[%clk 0:03:02.8]} 6. Nc3 {[%clk 0:03:01.6]} 6... Qc7 {[%clk
0:03:03.5]} 7. a3 {[%clk 0:03:01.7]} 7... b6 {[%clk 0:03:04.1]} 8. Be3 {[%clk
0:03:01.6]} 8... Bb7 {[%clk 0:03:04.3]} 9. f3 {[%clk 0:03:02.2]} 9... d6 {[%clk
0:03:04.7]} 10. Rc1 {[%clk 0:03:02.3]} 10... Be7 {[%clk 0:03:05]} 11. Be2 {[%clk
0:03:02.9]} 11... Nbd7 {[%clk 0:03:03.2]} 12. O-O {[%clk 0:03:03.3]} 12... O-O
{[%clk 0:03:03.6]} 13. b4 {[%clk 0:03:03.6]} 13... Rac8 {[%clk 0:03:03.1]} 14.
Qd2 {[%clk 0:03:02.5]} 14... Rfe8 {[%clk 0:03:02.2]} 15. Rc2 {[%clk 0:03:02.8]}
15... h5 {[%clk 0:02:59]} 16. Nd1 {[%clk 0:02:55.4]} 16... Qb8 {[%clk
0:02:52.7]} 17. Nf2 {[%clk 0:02:55]} 17... d5 {[%clk 0:02:45.1]} 18. exd5 {[%clk
0:02:51.8]} 18... exd5 {[%clk 0:02:45.3]} 19. Nf5 {[%clk 0:02:47.8]} 19... Bf8
{[%clk 0:02:42.9]} 20. Bd4 {[%clk 0:02:34.7]} 20... g6 {[%clk 0:02:26.6]} 21.
Nh6+ {[%clk 0:02:09]} 21... Kg7 {[%clk 0:02:26.8]} 22. Qg5 {[%clk 0:02:09.1]}
22... Re5 {[%clk 0:02:20.2]} 23. Qc1 {[%clk 0:01:56]} 23... Re7 {[%clk
0:02:10.9]} 24. Nf5+ {[%clk 0:01:39.1]} 24... gxf5 {[%clk 0:01:33.7]} 25. Qg5+
{[%clk 0:01:38.9]} 25... Kh7 {[%clk 0:01:29.6]} 26. Qxf5+ {[%clk 0:01:36.5]}
26... Kg8 {[%clk 0:01:24.9]} 27. Bxf6 {[%clk 0:01:36.8]} 27... Nxf6 {[%clk
0:01:24.6]} 28. Qxf6 {[%clk 0:01:37.7]} 28... Qe5 {[%clk 0:01:25]} 29. Qxe5
{[%clk 0:01:23.8]} 29... Rxe5 {[%clk 0:01:25.9]} 30. Rd1 {[%clk 0:01:17.7]}
30... dxc4 {[%clk 0:01:25.5]} 31. Bxc4 {[%clk 0:01:14.3]} 31... Rxc4 {[%clk
0:01:24.9]} 32. Rxc4 {[%clk 0:01:11.5]} 32... Re3 {[%clk 0:01:16.9]} 33. Rc7
{[%clk 0:01:05.2]} 33... Ba8 {[%clk 0:01:14.6]} 34. Rc8 {[%clk 0:01:01.7]} 34...
Bd5 {[%clk 0:01:14.9]} 35. Ng4 {[%clk 0:00:56.1]} 35... hxg4 {[%clk 0:01:08.8]}
36. Rxd5 {[%clk 0:00:55.7]} 36... gxf3 {[%clk 0:01:08.1]} 37. Rg5+ {[%clk
0:00:52.6]} 1-0

[Event "Late-Titled-Tuesday-Blitz-October-10-2023"]
[Site "Chess.com"]
[Date "2023.10.10"]
[Round "2"]
[White "chessisveryfun1264"]
[Black "BlueWizzard"]
[Result "0-1"]
[WhiteElo "2581"]
[BlackElo "2906"]
[TimeControl "180+1"]
[EndTime "14:15:58 PDT"]
[Termination "BlueWizzard won by resignation"]

1. Nf3 {[%clk 0:03:00.9]} 1... d5 {[%clk 0:02:55]} 2. g3 {[%clk 0:03:01.8]} 2...
c5 {[%clk 0:02:53.8]} 3. Bg2 {[%clk 0:03:02.3]} 3... h5 {[%clk 0:02:54.3]} 4. b3
{[%clk 0:03:00]} 4... Nc6 {[%clk 0:02:52.1]} 5. Bb2 {[%clk 0:03:00]} 5... Nf6
{[%clk 0:02:47.3]} 6. e3 {[%clk 0:02:59.5]} 6... Bf5 {[%clk 0:02:43.9]} 7. d3
{[%clk 0:02:58.1]} 7... e6 {[%clk 0:02:41.6]} 8. Nbd2 {[%clk 0:02:57.9]} 8...
Qc7 {[%clk 0:02:39.6]} 9. Qe2 {[%clk 0:02:57.7]} 9... Be7 {[%clk 0:02:36.3]} 10.
e4 {[%clk 0:02:57.1]} 10... dxe4 {[%clk 0:02:27.4]} 11. dxe4 {[%clk 0:02:58]}
11... Bg4 {[%clk 0:02:28.1]} 12. h3 {[%clk 0:02:56.6]} 12... Bxf3 {[%clk
0:02:28.3]} 13. Nxf3 {[%clk 0:02:57.5]} 13... Qa5+ {[%clk 0:02:27.6]} 14. c3
{[%clk 0:02:52.2]} 14... e5 {[%clk 0:02:22.1]} 15. O-O {[%clk 0:02:51.2]} 15...
O-O {[%clk 0:02:20.7]} 16. Nd2 {[%clk 0:02:50.7]} 16... b5 {[%clk 0:02:19.9]}
17. Kh1 {[%clk 0:02:44.3]} 17... Rad8 {[%clk 0:02:17.5]} 18. Nf3 {[%clk
0:02:42.7]} 18... b4 {[%clk 0:02:17.4]} 19. cxb4 {[%clk 0:02:42]} 19... cxb4
{[%clk 0:02:17.7]} 20. Qc4 {[%clk 0:02:36.1]} 20... Rc8 {[%clk 0:02:13.3]} 21.
Rfc1 {[%clk 0:02:30.8]} 21... Qb6 {[%clk 0:02:04]} 22. Rc2 {[%clk 0:02:21]}
22... Kh7 {[%clk 0:01:56.5]} 23. Ng5+ {[%clk 0:02:12.2]} 23... Kg6 {[%clk
0:01:48.6]} 24. h4 {[%clk 0:02:12.2]} 24... Nd4 {[%clk 0:01:48.8]} 25. Qxc8
{[%clk 0:02:07.2]} 25... Rxc8 {[%clk 0:01:49]} 26. Rxc8 {[%clk 0:02:04.6]} 26...
Ng4 {[%clk 0:01:49]} 27. f3 {[%clk 0:02:00.8]} 27... Nf2+ {[%clk 0:01:46.5]} 28.
Kh2 {[%clk 0:02:00.5]} 28... Bxg5 {[%clk 0:01:42.6]} 29. hxg5 {[%clk 0:02:00.3]}
29... Kxg5 {[%clk 0:01:27.9]} 30. Rf1 {[%clk 0:01:38.1]} 30... Nd3 {[%clk
0:01:21.1]} 31. Bxd4 {[%clk 0:01:32.5]} 31... Qxd4 {[%clk 0:01:15.6]} 32. Rc6
{[%clk 0:01:29]} 32... f6 {[%clk 0:01:13.8]} 33. Rc2 {[%clk 0:01:25.9]} 33... h4
{[%clk 0:01:03.5]} 34. Rd1 {[%clk 0:01:17.8]} 34... hxg3+ {[%clk 0:00:59.1]} 35.
Kxg3 {[%clk 0:01:13.5]} 35... Qe3 {[%clk 0:00:59.7]} 36. Bh3 {[%clk 0:01:10.6]}
36... Ne1 {[%clk 0:00:43.3]} 0-1

[Event "Late-Titled-Tuesday-Blitz-October-10-2023"]
[Site "Chess.com"]
[Date "2023.10.10"]
[Round "2"]
[White "Maestro1986"]
[Black "Cayse"]
[Result "0-1"]
[WhiteElo "2553"]
[BlackElo "2856"]
[TimeControl "180+1"]
[EndTime "14:16:02 PDT"]
[Termination "Cayse won by resignation"]

1. d4 {[%clk 0:02:58.7]} 1... d5 {[%clk 0:02:59.6]} 2. Nf3 {[%clk 0:02:58.9]}
2... Nf6 {[%clk 0:02:59.4]} 3. c4 {[%clk 0:02:59.2]} 3... e6 {[%clk 0:02:59.6]}
4. g3 {[%clk 0:02:58.5]} 4... Be7 {[%clk 0:02:59.3]} 5. Bg2 {[%clk 0:02:58.9]}
5... O-O {[%clk 0:02:59.4]} 6. O-O {[%clk 0:02:59.2]} 6... c6 {[%clk 0:02:59.8]}
7. Qc2 {[%clk 0:02:57.6]} 7... Nbd7 {[%clk 0:02:51.3]} 8. Nbd2 {[%clk 0:02:57]}
8... b6 {[%clk 0:02:47.5]} 9. e4 {[%clk 0:02:56.6]} 9... Bb7 {[%clk 0:02:47.6]}
10. e5 {[%clk 0:02:56.8]} 10... Ne8 {[%clk 0:02:45.3]} 11. b3 {[%clk 0:02:55.9]}
11... Rc8 {[%clk 0:02:43.7]} 12. cxd5 {[%clk 0:02:53.8]} 12... cxd5 {[%clk
0:02:38]} 13. Qd3 {[%clk 0:02:53.6]} 13... Nc7 {[%clk 0:02:37.8]} 14. Re1 {[%clk
0:02:44.8]} 14... Ba6 {[%clk 0:02:37.8]} 15. Qe3 {[%clk 0:02:44.9]} 15... Nb5
{[%clk 0:02:30.8]} 16. Bb2 {[%clk 0:02:42.9]} 16... Ba3 {[%clk 0:02:30.8]} 17.
Rab1 {[%clk 0:02:32.3]} 17... Qe7 {[%clk 0:02:29.2]} 18. Bf1 {[%clk 0:02:29.9]}
18... Nb8 {[%clk 0:02:24.8]} 19. Bxb5 {[%clk 0:02:23.4]} 19... Bxb5 {[%clk
0:02:24.3]} 20. Kg2 {[%clk 0:02:06.5]} 20... Na6 {[%clk 0:02:23.4]} 21. Bc3
{[%clk 0:01:59.2]} 21... h6 {[%clk 0:02:21.2]} 22. h4 {[%clk 0:01:58.2]} 22...
Nb4 {[%clk 0:02:20.1]} 23. Bxb4 {[%clk 0:01:56.3]} 23... Qxb4 {[%clk 0:02:17.9]}
24. g4 {[%clk 0:01:43.1]} 24... Rc3 {[%clk 0:02:17.4]} 25. Qf4 {[%clk
0:01:42.9]} 25... Bd3 {[%clk 0:02:17.5]} 26. Rbd1 {[%clk 0:01:36.8]} 26... Bc2
{[%clk 0:02:17.3]} 27. h5 {[%clk 0:01:28.4]} 27... Bxd1 {[%clk 0:02:10.7]} 28.
Rxd1 {[%clk 0:01:29.3]} 28... Rc1 {[%clk 0:02:11]} 29. Rxc1 {[%clk 0:01:19.5]}
29... Bxc1 {[%clk 0:02:11.9]} 30. g5 {[%clk 0:01:20.2]} 30... Bxd2 {[%clk
0:02:09.9]} 31. Nxd2 {[%clk 0:01:19.9]} 31... hxg5 {[%clk 0:02:10.1]} 32. Qxg5
{[%clk 0:01:13.9]} 32... f6 {[%clk 0:02:08.6]} 33. exf6 {[%clk 0:00:54.8]} 33...
Rxf6 {[%clk 0:02:08.1]} 34. Nf3 {[%clk 0:00:53.5]} 34... Qf8 {[%clk 0:02:07.3]}
35. Qg4 {[%clk 0:00:52]} 35... Kh8 {[%clk 0:01:56.7]} 36. Qg3 {[%clk 0:00:50.3]}
36... Qf7 {[%clk 0:01:48.4]} 37. Qh3 {[%clk 0:00:36.3]} 37... Rf5 {[%clk
0:01:44]} 38. h6 {[%clk 0:00:24.5]} 38... Qg6+ {[%clk 0:01:43.4]} 39. Kf1 {[%clk
0:00:23.4]} 39... Qxh6 {[%clk 0:01:43]} 40. Qxh6+ {[%clk 0:00:21]} 40... gxh6
{[%clk 0:01:42.6]} 41. Ne5 {[%clk 0:00:20.6]} 41... Rxe5 {[%clk 0:01:39.2]} 0-1

[Event "Late-Titled-Tuesday-Blitz-October-10-2023"]
[Site "Chess.com"]
[Date "2023.10.10"]
[Round "2"]
[White "realmadridfc123"]
[Black "emeli_chess"]
[Result "1-0"]
[WhiteElo "2808"]
[BlackElo "2403"]
[TimeControl "180+1"]
[EndTime "14:16:05 PDT"]
[Termination "realmadridfc123 won by resignation"]

1. Nf3 {[%clk 0:03:00.9]} 1... f5 {[%clk 0:02:59.3]} 2. d4 {[%clk 0:03:01.2]}
2... Nf6 {[%clk 0:02:59.1]} 3. c4 {[%clk 0:03:01.7]} 3... g6 {[%clk 0:02:58.6]}
4. Nc3 {[%clk 0:03:02.3]} 4... Bg7 {[%clk 0:02:58.8]} 5. g3 {[%clk 0:02:57.6]}
5... O-O {[%clk 0:02:58.5]} 6. Bg2 {[%clk 0:02:58.3]} 6... d6 {[%clk 0:02:59]}
7. O-O {[%clk 0:02:58.7]} 7... c6 {[%clk 0:02:59.1]} 8. Re1 {[%clk 0:02:58.9]}
8... Na6 {[%clk 0:02:54.7]} 9. Qb3 {[%clk 0:02:54.5]} 9... h6 {[%clk 0:02:36.3]}
10. Bd2 {[%clk 0:02:45.7]} 10... Qc7 {[%clk 0:02:25.7]} 11. e4 {[%clk
0:02:45.9]} 11... fxe4 {[%clk 0:02:19.3]} 12. Nxe4 {[%clk 0:02:46.8]} 12... Nxe4
{[%clk 0:02:19.5]} 13. Rxe4 {[%clk 0:02:47.6]} 13... Bf5 {[%clk 0:02:19.4]} 14.
Ree1 {[%clk 0:02:32.8]} 14... g5 {[%clk 0:02:14.5]} 15. Bc3 {[%clk 0:02:21.8]}
15... Rae8 {[%clk 0:01:56.7]} 16. Re3 {[%clk 0:02:20.6]} 16... e5 {[%clk
0:01:38.5]} 17. dxe5 {[%clk 0:02:20.4]} 17... Nc5 {[%clk 0:01:37.6]} 18. Qa3
{[%clk 0:02:14.4]} 18... b6 {[%clk 0:01:24.8]} 19. exd6 {[%clk 0:02:09.6]} 19...
Qxd6 {[%clk 0:01:24.7]} 20. Bxg7 {[%clk 0:02:09.9]} 20... Kxg7 {[%clk
0:01:20.5]} 21. Qxa7+ {[%clk 0:01:52.3]} 21... Rf7 {[%clk 0:01:18.3]} 22. Qa3
{[%clk 0:01:50.5]} 22... Rxe3 {[%clk 0:01:07.3]} 23. Qxe3 {[%clk 0:01:51.4]}
23... Re7 {[%clk 0:01:07.8]} 24. Qd4+ {[%clk 0:01:49.7]} 24... Qxd4 {[%clk
0:01:06.4]} 25. Nxd4 {[%clk 0:01:50.6]} 25... Be4 {[%clk 0:01:05.5]} 26. Re1
{[%clk 0:01:48.1]} 26... Kf6 {[%clk 0:01:03.2]} 27. Bxe4 {[%clk 0:01:45.8]}
27... Rxe4 {[%clk 0:00:59]} 28. Rxe4 {[%clk 0:01:45.8]} 28... Nxe4 {[%clk
0:00:59.3]} 29. Nxc6 {[%clk 0:01:46.5]} 29... Nd2 {[%clk 0:00:56.9]} 30. b3
{[%clk 0:01:44]} 30... g4 {[%clk 0:00:55.6]} 31. Kg2 {[%clk 0:01:34.1]} 31...
Kf5 {[%clk 0:00:53.6]} 32. h3 {[%clk 0:01:28.5]} 32... h5 {[%clk 0:00:53.3]} 33.
hxg4+ {[%clk 0:01:28.7]} 33... hxg4 {[%clk 0:00:54.2]} 34. Nd4+ {[%clk
0:01:25.5]} 34... Ke4 {[%clk 0:00:54]} 35. Nc2 {[%clk 0:01:26.2]} 35... Kd3
{[%clk 0:00:36.7]} 36. Ne3 {[%clk 0:01:26.5]} 36... Kc3 {[%clk 0:00:36.9]} 37.
Nd5+ {[%clk 0:01:24.2]} 37... Kb2 {[%clk 0:00:35.8]} 38. Nxb6 {[%clk 0:01:24.9]}
38... Kxa2 {[%clk 0:00:35.8]} 39. c5 {[%clk 0:01:25.5]} 39... Nxb3 {[%clk
0:00:35.7]} 40. c6 {[%clk 0:01:25.6]} 1-0

[Event "Late-Titled-Tuesday-Blitz-October-10-2023"]
[Site "Chess.com"]
[Date "2023.10.10"]
[Round "2"]
[White "Denis_Makhnyov"]
[Black "IMGC"]
[Result "1-0"]
[WhiteElo "2910"]
[BlackElo "2410"]
[TimeControl "180+1"]
[EndTime "14:16:09 PDT"]
[Termination "Denis_Makhnyov won on time"]

1. d4 {[%clk 0:03:00.9]} 1... Nf6 {[%clk 0:02:58.2]} 2. c4 {[%clk 0:03:01.5]}
2... g6 {[%clk 0:02:56.9]} 3. g3 {[%clk 0:03:01.5]} 3... Bg7 {[%clk 0:02:57.3]}
4. Bg2 {[%clk 0:03:01.8]} 4... O-O {[%clk 0:02:58.1]} 5. Nc3 {[%clk 0:03:02]}
5... c5 {[%clk 0:02:58.8]} 6. d5 {[%clk 0:03:01.7]} 6... d6 {[%clk 0:02:57.9]}
7. Nf3 {[%clk 0:03:02]} 7... a6 {[%clk 0:02:57.4]} 8. O-O {[%clk 0:03:02.2]}
8... b5 {[%clk 0:02:57.2]} 9. cxb5 {[%clk 0:03:02.6]} 9... axb5 {[%clk
0:02:58.1]} 10. Nxb5 {[%clk 0:03:03.5]} 10... Ba6 {[%clk 0:02:57.8]} 11. Nc3
{[%clk 0:03:03.9]} 11... Nbd7 {[%clk 0:02:55.9]} 12. Qc2 {[%clk 0:03:03.6]}
12... Nb6 {[%clk 0:02:48.1]} 13. Rd1 {[%clk 0:03:03.6]} 13... Bb7 {[%clk
0:02:41.4]} 14. e4 {[%clk 0:03:03.3]} 14... Ba6 {[%clk 0:02:41.9]} 15. Rb1
{[%clk 0:03:02.5]} 15... Nfd7 {[%clk 0:02:40.3]} 16. b3 {[%clk 0:03:00.5]} 16...
Qc7 {[%clk 0:02:38.7]} 17. a4 {[%clk 0:02:59.1]} 17... Rfb8 {[%clk 0:02:35.3]}
18. Bf4 {[%clk 0:02:46.4]} 18... c4 {[%clk 0:02:16.2]} 19. Ne2 {[%clk
0:02:00.5]} 19... Nc5 {[%clk 0:02:04.6]} 20. b4 {[%clk 0:01:31.5]} 20... Ncxa4
{[%clk 0:02:04]} 21. Nfd4 {[%clk 0:01:32.3]} 21... c3 {[%clk 0:01:28.8]} 22. Nc6
{[%clk 0:01:29.8]} 22... Rc8 {[%clk 0:00:44.9]} 23. b5 {[%clk 0:01:29.1]} 23...
Bb7 {[%clk 0:00:42.5]} 24. Rb4 {[%clk 0:01:29.1]} 24... Bxc6 {[%clk 0:00:10.1]}
25. dxc6 {[%clk 0:01:20.1]} 25... Ra5 {[%clk 0:00:09.6]} 26. e5 {[%clk
0:01:12.6]} 26... dxe5 {[%clk 0:00:07.6]} 27. Be3 {[%clk 0:01:13]} 27... Rca8
{[%clk 0:00:06.4]} 28. Nxc3 {[%clk 0:01:12.2]} 28... Nxc3 {[%clk 0:00:04.2]} 29.
Qxc3 {[%clk 0:01:13.1]} 1-0

[Event "Late-Titled-Tuesday-Blitz-October-10-2023"]
[Site "Chess.com"]
[Date "2023.10.10"]
[Round "2"]
[White "MikeSailer"]
[Black "GHANDEEVAM2003"]
[Result "0-1"]
[WhiteElo "2169"]
[BlackElo "3049"]
[TimeControl "180+1"]
[EndTime "14:16:11 PDT"]
[Termination "GHANDEEVAM2003 won by resignation"]

1. d4 {[%clk 0:03:00]} 1... b6 {[%clk 0:02:57.7]} 2. c4 {[%clk 0:02:51.7]} 2...
g6 {[%clk 0:02:56.4]} 3. Nc3 {[%clk 0:02:51.7]} 3... Bg7 {[%clk 0:02:55.7]} 4.
e4 {[%clk 0:02:52.6]} 4... Bb7 {[%clk 0:02:56]} 5. Be3 {[%clk 0:02:48.4]} 5...
e6 {[%clk 0:02:55.6]} 6. f3 {[%clk 0:02:44.9]} 6... d6 {[%clk 0:02:54.1]} 7. Bd3
{[%clk 0:02:43.8]} 7... a6 {[%clk 0:02:52.8]} 8. Qd2 {[%clk 0:02:42.8]} 8... h6
{[%clk 0:02:50.4]} 9. Nge2 {[%clk 0:02:42.8]} 9... Nd7 {[%clk 0:02:49.2]} 10. a4
{[%clk 0:02:35]} 10... a5 {[%clk 0:02:48]} 11. Nb5 {[%clk 0:02:33]} 11... Ne7
{[%clk 0:02:42.1]} 12. O-O {[%clk 0:02:32.3]} 12... g5 {[%clk 0:02:40.5]} 13. f4
{[%clk 0:02:28]} 13... Nf6 {[%clk 0:02:34.7]} 14. e5 {[%clk 0:02:03.7]} 14...
dxe5 {[%clk 0:02:35.6]} 15. fxe5 {[%clk 0:02:00.6]} 15... Ng4 {[%clk 0:02:35.7]}
16. Ng3 {[%clk 0:01:52.7]} 16... h5 {[%clk 0:01:52.1]} 17. Bxg5 {[%clk
0:01:45.7]} 17... h4 {[%clk 0:01:52.2]} 18. Ne4 {[%clk 0:01:45.6]} 18... h3
{[%clk 0:01:52.3]} 19. g3 {[%clk 0:01:40]} 19... Qd7 {[%clk 0:01:51.2]} 20. Nf6+
{[%clk 0:01:32.4]} 20... Bxf6 {[%clk 0:01:49.4]} 21. exf6 {[%clk 0:01:27.4]}
21... Qc6 {[%clk 0:01:35.8]} 22. d5 {[%clk 0:01:20]} 22... Qc5+ {[%clk
0:01:35.2]} 23. Kh1 {[%clk 0:01:10.6]} 23... Nxd5 {[%clk 0:01:33.6]} 24. Be4
{[%clk 0:00:59.5]} 24... Qxc4 {[%clk 0:01:31.1]} 25. Rae1 {[%clk 0:00:34.8]}
25... O-O-O {[%clk 0:01:27.8]} 26. Qe2 {[%clk 0:00:22.4]} 26... Qxe2 {[%clk
0:01:23.3]} 27. Rxe2 {[%clk 0:00:22.8]} 27... Ngxf6 {[%clk 0:01:16.6]} 28. Bxf6
{[%clk 0:00:16.8]} 28... Nxf6 {[%clk 0:01:17.5]} 29. Bxb7+ {[%clk 0:00:17.3]}
29... Kxb7 {[%clk 0:01:17.2]} 30. Rxf6 {[%clk 0:00:17.9]} 30... Rd1+ {[%clk
0:01:16.9]} 0-1